Cogmind - Beta 12 @@@ ROGUE MODE // 2023.04.03 @ 16:59:13 Player: lyrabold Result: Destroyed by D-53 Grenadier with Mini Grenade Launcher Performance ------------- Evolutions (0) 0 Regions Visited (2) 400 Robots Destroyed (32) 160 Value Destroyed (563) 563 Prototype IDs (4) 80 Alien Tech Used (0) 0 Bonus (7) 7 TOTAL SCORE: 1210 Bonus ------- Follower Combat Kills 7 Cogmind --------- Core Integrity 0/250 Matter 280/300 Energy 243/250 System Corruption 0% Temperature Cool (0) Movement Treading (160) Location -10/Mines Parts ------- > --- POWER (1) -------- Ion Engine > --- PROPULSION (2) --- Light Treads Light Treads > --- UTILITY (2) ------ Heat Sink Large Storage Unit > --- WEAPON (2) ------- Medium Laser Light Cannon > --- INVENTORY (15) --- Ion Engine Fission Core Light Treads Huge Storage Unit High-capacity Matter Pod (200) Seismic Detector Seismic Detector Light Armor Plating Hacking Suite Medium Laser Medium Laser Light Assault Rifle Light Assault Rifle Light Assault Rifle Mining Laser Peak State ------------ > --- POWER ------------ Ion Engine > --- PROPULSION ------- Light Treads Light Treads > --- UTILITY ---------- Heat Sink Large Storage Unit > --- WEAPON ----------- Medium Laser Light Assault Rifle > --- INVENTORY -------- Ion Engine Fission Core Light Treads Huge Storage Unit High-capacity Matter Pod Seismic Detector Seismic Detector Light Armor Plating Hacking Suite Medium Laser Medium Laser Light Assault Rifle Light Assault Rifle Light Cannon Mining Laser [Rating: 9] Favorites ----------- Power Ion Engine Engine Ion Engine Propulsion Light Treads Treads Light Treads Leg Aluminum Leg Utility Large Storage Unit Device Seismic Detector Storage Large Storage Unit Weapon Medium Laser Energy Gun Medium Laser Ballistic Gun Light Assault Rifle Ballistic Cannon Light Cannon Special Weapon Mining Laser Build | -11 -10 -10 ------- Run | Jun Mat Min Slots Evolved . | . . . Power . | . . . Propulsion . | . . . Utility . | . . . Weapon . | . . . Parts Attached 21 | 7 12 2 Power 3 | 1 2 . Engine 3 | 1 2 . Core . | . . . Reactor . | . . . Propulsion 5 | 2 2 1 Treads 3 | . 2 1 Leg 2 | 2 . . Wheel . | . . . Hover . | . . . Flight . | . . . Utility 7 | 2 5 . Device 5 | 1 4 . Storage 2 | 1 1 . Processor . | . . . Hackware . | . . . Protection . | . . . Artifact . | . . . Weapon 6 | 2 3 1 Energy Gun 2 | 1 1 . Energy Cannon . | . . . Ballistic Gun 2 | 1 1 . Ballistic Cannon 1 | . . 1 Launcher . | . . . Special Weapon 1 | . 1 . Impact Weapon . | . . . Slashing Weapon . | . . . Piercing Weapon . | . . . Special Melee Weapon . | . . . Unidentified Prototypes . | . . . Parts Lost 2 | . 1 1 Power . | . . . Propulsion 1 | . . 1 Utility . | . . . Weapon 1 | . 1 . Highest Loss Streak 1 | . 1 1 To Critical Strikes . | . . . Average Slot Usage (%) 98 | . 98 99 Engine 14 | . 14 14 Treads 16 | . 15 27 Leg 10 | . 12 . Device 12 | . 12 14 Storage 14 | . 14 14 Energy Gun 14 | . 14 14 Ballistic Gun 13 | . 13 13 Naked Turns . | . . . Heaviest Build 31 | 14 29 31 Greatest Support 40 | 20 40 40 Greatest Overweight (x) 1 | 1 . . Average Overweight (x) . | . . . Largest Inventory Capacity 15 | 8 15 15 Average Capacity 11 | 7 11 15 Most Carried 15 | 6 15 15 Average Carried 8 | 4 8 14 Final Capacity 15 | 8 15 15 Final Carried 15 | 5 15 15 Class Distribution -------------------- 100% | Mutant Dominant Class ---------------- Mutant | -10/Materials Mutant | -10/Mines Resources | -11 -10 -10 ----------- Run | Jun Mat Min Matter Collected 671 | 288 379 4 Remotely . | . . . Salvage Created 867 | 202 634 31 Parts 66 | 20 42 4 Haulers Intercepted 2 | . 2 . Recyclers Shooed 1 | . . 1 Parts Field Recycled . | . . . Retrieved Matter . | . . . Parts Self-Destructed . | . . . Prevented . | . . . Kills | -11 -10 -10 ------- Run | Jun Mat Min Combat Hostiles Destroyed 19 | . 17 2 Guns 19 | . 17 2 Classes Destroyed 9 | 3 4 2 Worker 1 | 1 . . Builder 1 | . . 1 Tunneler 6 | 6 . . Hauler 2 | . 2 . Recycler 1 | 1 . . Watcher 3 | . 3 . Swarmer 7 | . 6 1 Grunt 11 | . 11 . Assembled 1 | . . 1 Best Kill Streak 5 | 4 5 1 Combat Bots Only 5 | . 5 1 Max Kills in Single Turn 2 | 1 2 1 Gunslinging 1 | . 1 . Exploded . | . . . Melee . | . . . Uniques/NPCs Destroyed . | . . . Combat | -11 -10 -10 -------- Run | Jun Mat Min Damage Taken 953 | . 667 286 Core 250 | . 145 105 Absorbed by Shields . | . . . Core Remaining (%) 100 | 100 . . Volleys Fired 101 | 18 76 7 Largest 2 | 2 2 2 Hottest 100 | 70 100 70 Shots Fired 201 | 36 151 14 Gun 200 | 36 150 14 Cannon . | . . . Launcher . | . . . Special 1 | . 1 . Kinetic 100 | 18 75 7 Thermal 101 | 18 76 7 Explosive . | . . . Electromagnetic . | . . . Robot Hit Streak 11 | 6 11 8 Robot Miss Streak 5 | 2 5 2 Penetration Max . | . . . Secondary Targets 6 | . 5 1 Max Gunslinging Chain 1 | . 1 1 Shots Hit Robots 132 | 25 97 10 Core Hits 56 | 11 40 5 Critical Kills 1 | 1 . . Critical Parts Destroyed . | . . . Critical Strikes 5 | 1 4 . Burn 4 | . 4 . Destroy 1 | 1 . . Melee Attacks . | . . . Impact . | . . . Slashing . | . . . Piercing . | . . . Sneak Attacks . | . . . Combat Hostiles . | . . . Follow-up Attacks . | . . . Damage Inflicted 1381 | 253 1020 108 Guns 1357 | 253 1007 97 Cannons . | . . . Explosions . | . . . Melee . | . . . Ramming 24 | . 13 11 Kinetic 545 | 105 405 35 Thermal 812 | 148 602 62 Explosive . | . . . Electromagnetic . | . . . Impact . | . . . Slashing . | . . . Piercing . | . . . Highest Corruption . | . . . Average Corruption . | . . . Corruption Purged . | . . . Corruption Blocked . | . . . Overload Shots . | . . . Overflow Damage . | . . . Projectiles . | . . . Explosions . | . . . Melee . | . . . Knockbacks . | . . . Impact . | . . . Kinetic . | . . . Secondary . | . . . Self-Inflicted Damage . | . . . Shots . | . . . Rammed 4 | . 4 . Targets Rammed 7 | . 6 1 Kicked 1 | . 1 . Crushed 2 | . 1 1 Highest Temperature 294 | 90 294 70 Average Temperature 69 | 33 82 22 Received Heat Transfer 415 | . 255 160 Effects 1 | . 1 . Energy Bleed 1 | . 1 . Siege Activations . | . . . Robots Corrupted . | . . . Combat Hostiles . | . . . Parts Fried . | . . . Impact Corruptions . | . . . Robots Melted . | . . . Combat Hostiles . | . . . Parts Melted 7 | . 7 . Heat Transferred 2701 | 444 2072 185 Parts Sabotaged . | . . . Parts Stolen . | . . . Parts Stripped . | . . . Power Chain Reactions . | . . . Missiles Intercepted . | . . . Alert | -11 -10 -10 ------- Run | Jun Mat Min Peak Influence 308 | 40 308 196 Initial 120 | . 26 120 Average 112 | 23 128 140 Maximum Alert Level 1 | . 1 . Low Security (%) 85 | 100 80 100 Level 1 14 | . 19 . Level 2 . | . . . Level 3 . | . . . Level 4 . | . . . Level 5 . | . . . High Security . | . . . Max Security . | . . . Squads Dispatched 4 | . 4 . Investigation 4 | . 4 . Extermination . | . . . Reinforcement . | . . . Assault . | . . . Garrison . | . . . Intercept . | . . . Searches Triggered . | . . . Construction Impeded . | . . . Haulers Reinforced . | . . . Active Scanning Responses . | . . . Cargo Convoy Interrupts . | . . . Stealth | -11 -10 -10 --------- Run | Jun Mat Min Distress Signals 1 | . 1 . Communications Jammed . | . . . Distress Signals . | . . . Times Spotted 43 | . 23 20 Peak Tracking Total 12 | . 4 12 Tactical Retreats 3 | . 1 2 Traps | -11 -10 -10 ------- Run | Jun Mat Min Traps Triggered . | . . . Indirectly . | . . . Trap Hack Attempts . | . . . Triggered . | . . . Disarmed . | . . . Reprogrammed . | . . . Reused . | . . . Traps Extracted . | . . . Installed . | . . . Triggered . | . . . Machines | -11 -10 -10 ---------- Run | Jun Mat Min Machines Disabled . | . . . Max in Single Turn . | . . . Machines Repaired . | . . . Machines Sabotaged . | . . . Overloaded Fab Kills . | . . . Hacking | -11 -10 -10 --------- Run | Jun Mat Min Machines Accessed 11 | . 11 . Terminals 8 | . 8 . Fabricators . | . . . Repair Stations 1 | . 1 . Recycling Units 2 | . 2 . Scanalyzers . | . . . Garrison Access . | . . . Total Hacks 25 | . 25 . Successful 11 | . 11 . Failed 14 | . 14 . Catastrophic 3 | . 3 . Database Lockouts . | . . . Manual 13 | . 13 . Terminals 20 | . 20 . Fabricators . | . . . Repair Stations 2 | . 2 . Recycling Units 3 | . 3 . Scanalyzers . | . . . Garrison Access . | . . . Terminal Hacks 7 | . 7 . Part Schematic 1 | . 1 . Prototype ID Bank 2 | . 2 . Locate Traps 1 | . 1 . Hauler Manifests 1 | . 1 . Zone Layout 2 | . 2 . Fabricator Hacks . | . . . Repair Station Hacks . | . . . Recycling Unit Hacks 1 | . 1 . Report Inventory 1 | . 1 . Scanalyzer . | . . . Garrison Access Hacks . | . . . Unauthorized Hacks 3 | . 3 . Terminals 1 | . 1 . Assimilate 1 | . 1 . Fabricators . | . . . Repair Stations . | . . . Recycling Units 2 | . 2 . Tunnel 2 | . 2 . Scanalyzers . | . . . Garrison Access . | . . . Data Cores Recovered . | . . . Used . | . . . Hacking Detections 9 | . 9 . Full Trace Events 2 | . 2 . Feedback Events . | . . . Feedback Blocked . | . . . Robot Schematics Acquired . | . . . Robots Built . | . . . Authchips . | . . . Time . | . . . Total Robot Build Rating . | . . . Part Schematics Acquired 1 | . 1 . Parts Built . | . . . Authchips . | . . . Time . | . . . Total Part Build Rating . | . . . Parts Repaired . | . . . Time . | . . . Parts Recycled . | . . . Recycled Matter . | . . . Retrieved Matter . | . . . Retrieved Components . | . . . Parts Scanalyzed . | . . . Part Schematics Acquired . | . . . Parts Damaged . | . . . Bothacking | -11 -10 -10 ------------ Run | Jun Mat Min Used RIF Installer . | . . . Robots Hacked . | . . . Non-combat . | . . . Combat . | . . . Robot Hacks Applied . | . . . Relay Couplers Released . | . . . Fabnet Peak Effective % . | . . . Robots Rewired . | . . . Allies Hacked . | . . . Hacks Repelled . | . . . Allies | -11 -10 -10 -------- Run | Jun Mat Min Total Allies 3 | . 1 2 Largest Group 2 | . 1 2 Highest-Rated Group 41 | . 10 41 Highest-Rated Ally 31 | . 10 31 Total Orders 3 | . 3 . STAY 2 | . 2 . FOLLOW 1 | . 1 . Ally Attacks 4 | . . 4 Total Damage 62 | . . 62 Kills 3 | . . 3 Allies Corrupted . | . . . Allies Melted . | . . . Intel | -11 -10 -10 ------- Run | Jun Mat Min Robot Analysis Total . | . . . Derelict Logs Recovered 1 | . . 1 Drone Launches . | . . . Drone Recoveries . | . . . Exploration | -11 -10 -10 ------------- Run | Jun Mat Min Turns Passed 1619 | 265 1195 159 Spaces Moved 836 | 102 653 81 Core 15 | 15 . . Treads 396 | . 315 81 Legs 425 | 87 338 . Wheels . | . . . Hover . | . . . Flight . | . . . Fastest Speed 50 | 50 120 160 Average Speed 138 | 114 139 160 Slowest Speed 160 | 120 160 160 Overloaded Moves . | . . . Propulsion Burnouts . | . . . Robots Hopped . | . . . Cave-ins Triggered . | . . . Exploration Rate (%) 40 | 5 96 19 Regions Visited 2 Branch Regions 1 Pre-discovered Areas 2 | . 2 . Known Exits Taken . | . . . Unknown Exits Taken 2 | 1 1 . Scrap Searched 1 | . . 1 Spaces Dug 1 | . 1 . Terrain Destroyed 1 | . 1 . Melee . | . . . Projectile 1 | . 1 . AOE . | . . . Terrain Rammed . | . . . Walls Destroyed . | . . . Machines Disabled . | . . . Actions | -11 -10 -10 --------- Run | Jun Mat Min Total 1109 | 215 797 97 Wait 114 | 82 29 3 Move 834 | 101 652 81 Hop . | . . . Pick Up 24 | 7 15 2 Fast Attach 5 | 5 . . Attach 7 | 2 4 1 Detach 1 | . 1 . Swap 9 | . 8 1 Drop 7 | . 6 1 Fire 101 | 18 76 7 Melee . | . . . Ram . | . . . Kick 1 | . 1 . Crush 6 | . 5 1 Escape Stasis . | . . . Rewire . | . . . Trap . | . . . Miscellaneous . | . . . Route ------- -11/Junkyard -10/Materials (discovered 4 exits: [*Mat x3] / [*Min]) -10/Mines (discovered 1 exit: [*Mat]) History --------- Turn | Location | Event 16 | -11/Junkyard | Discovered new exit (range 14) 266 | -11/Junkyard | Entered Materials 305 | -10/Materials | Build established: Mutant 491 | -10/Materials | Discovered new exit (range 13) 602 | -10/Materials | Discovered new exit (range 5) 727 | -10/Materials | Discovered new exit (range 16) 1117 | -10/Materials | Core integrity fell below 50% 1290 | -10/Materials | Discovered new exit (range 17) 1461 | -10/Materials | Entered Mines 1524 | -10/Mines | Discovered new exit (range 13) 1589 | -10/Mines | Assembled infested the area 1594 | -10/Mines | Assisted by a Guerilla fighting off Assembled 1614 | -10/Mines | Core integrity fell below 20% 1620 | -10/Mines | Destroyed by D-53 Grenadier with Mini Grenade Launcher Last Messages --------------- 01597_ as-74426 knocked back. 01598_ as-74426 sneak attacks. 01598_ K-01 Serf system corrupted by crushing effect. 01598_ U-05 Engineer destroyed. 01599_ K-01 Serf system terminally corrupted. 01600_ as-56693 destroyed. 01604_ as-88165 destroyed. 01605_ HV Slug penetrates TP-H25(g). 01605_ TP-H25(g) suffers critical hit (Destroy). 01605_ TP-H25(g) knocked back. 01605_ HV Slug penetrates as-70475. 01605_ HV Slug penetrates Wall. 01607_ as-95403 suffers critical hit (Destroy). 01607_ as-95403 destroyed. 01607_ TP-H25(g) destroyed. 01608_ as-93876 destroyed. 01608_ Switching to secondary target: as-54221. 01609_ Lgt. Treads destroyed. 01611_ 2X-1LF(h) destroyed. 01613_ Acquired Fission Core. Map ----- +----------------------------------------------------+ | ?????????? #????????## #??# #??? | | ?????????? ????????# ### #??? | | ?????????? ????????# #???? | | ?????????? ?????????# #???? | | ?????????? ?????????## #???? | | ??????????# ??????????## ##???? | | ??????????# #???????????## ## # #????? | | ??????????# #????????????# ## ##### #????? | | ??????????# #????????????# ## #???# #????? | | ??????????# ############## ## ##### ###??? | | ??????????# !%|!!%## #??? | | ?????????## ###############*#### !!! #??? | | ????????## ##???????????# #??# ! ! #??? | | ????????# #???????????# #??# ! ! #??? | | ????????# ##??????????# #??# ! ! #??? | | ????????## ##???????### #??# #??? | | ?????????### ##??????#*%=#??### < #??? | | ??????????### ##?????#%###????## ##??? | | ?????????# #????##%##??????####???? | | ?????????## #???? * #?????????????? | | ??????????##### ##????#!d!|?????????????? | | ??????????????####?????#=% ##????????????? | | ???????????????????????? d ?????????????? | | ???????????????????????? ??????????????? | | ??????????????????####??# #??????????????? | | ?????????????????## =###@#??????????????? | | ?????????????????# !% a #??????????????? | | ?????????????????# %a;####??????????????? | | ?????????????????#=%a%##?????????????????? | | ?????????????????#%*a ???????????????????? | | ????????????????a a!%"???????????????????? | | ?????????????? a %! ???????????????????? | | ?????????????### ????????????????????? | | ???????????????# ????????????????????? | | ???????????????# ????????????????????? | | ???????????????## #????????????????????? | | ????????????????"###?????????????????????? | | ???????????????##????????????????????????? | | ?????????????????????????????????????????? | | ?????????????????????????????????????????? | | ?????????????????????????????????????????? | | ?????????????????????????????????????????? | | ?????????????????????????????????????????? | | ?????????????????????????????????????????? | | ?????????????????????????????????????????? | | ?????????????????????????????????????????? | | ?????????????????????????????????????????? | | ?????????????????????????????????????????? | | ?????????????????????????????????????????? | | ?????????????????????????????????????????? | +----------------------------------------------------+ Best States ------------- Heat Dissipation 35 Energy Generation 10 Energy Capacity 250 Matter Stores 300 Matter Capacity 300 Sight Range 16 Terrain Scan Density 10 Evasion (%) 55 Recoil Reduction 2 Item Schematics ----------------- Huge Storage Unit | -10/Materials | Hacked Robot Schematics ------------------ None Fabricated ------------ Nothing Alien Tech Used ----------------- None Achievements -------------- None Challenges ------------ None Game ------ Seed ChipCombatFirepult Manual? 0 Play Time 00:13:54 Cumulative 252.0 hours Start 2023.04.03 @ 16:47:09 End 2023.04.03 @ 16:59:13 Sessions 1 Manual Loads 0 Difficulty Rogue Special Mode None Game No. 147 Rogue 147 Adventurer 0 Explorer 0 Win Type - Total 12 Types 7/0/2/2/0/0/1/0/0 Lore% 78 Gallery% 83 Achievement% 76 Wizard Run 0 Options --------- ASCII 0 Keyboard 1 Movement Arrows Keybinds 0 Fullscreen 2 Font 18/X11 Map View 76x50 Tactical HUD 1 Map Filters NONE Filters NONE Steam 1 RUN: 0b4ddd19-69fb-4449-b82c-fcfed9ce7dc2